[Event "Early-Titled-Tuesday-Blitz-October-03-2023"]
[Site "Chess.com"]
[Date "2023.10.03"]
[Round "2"]
[White "bylavochka"]
[Black "vladgoncharov"]
[Result "0-1"]
[WhiteElo "2325"]
[BlackElo "2524"]
[TimeControl "180+1"]
[EndTime "8:17:10 PDT"]
[Termination "vladgoncharov won on time"]

1. e4 {[%clk 0:03:00.9]} 1... e6 {[%clk 0:02:59.6]} 2. d4 {[%clk 0:02:58]} 2...
d5 {[%clk 0:02:59.8]} 3. exd5 {[%clk 0:02:58.9]} 3... exd5 {[%clk 0:02:59.7]} 4.
Nf3 {[%clk 0:02:59.2]} 4... Nc6 {[%clk 0:02:59.5]} 5. Be2 {[%clk 0:02:56.5]}
5... Bd6 {[%clk 0:02:58.2]} 6. Bg5 {[%clk 0:02:53.6]} 6... Nge7 {[%clk
0:02:56.6]} 7. O-O {[%clk 0:02:50.7]} 7... h6 {[%clk 0:02:49.6]} 8. Bh4 {[%clk
0:02:50.3]} 8... O-O {[%clk 0:02:49.2]} 9. Nc3 {[%clk 0:02:43]} 9... Be6 {[%clk
0:02:44.4]} 10. Bg3 {[%clk 0:02:05]} 10... a6 {[%clk 0:02:42.4]} 11. Re1 {[%clk
0:02:03.7]} 11... Ng6 {[%clk 0:02:36.1]} 12. Qd2 {[%clk 0:02:01.6]} 12... Qf6
{[%clk 0:02:29.9]} 13. Bxd6 {[%clk 0:01:59]} 13... cxd6 {[%clk 0:02:28.9]} 14.
Bf1 {[%clk 0:01:54.3]} 14... Rac8 {[%clk 0:02:13.4]} 15. Re3 {[%clk 0:01:32.1]}
15... Nce7 {[%clk 0:02:06.6]} 16. Rae1 {[%clk 0:01:24]} 16... Rc6 {[%clk
0:01:59.3]} 17. a4 {[%clk 0:01:15.6]} 17... Rfc8 {[%clk 0:01:51.4]} 18. Bd3
{[%clk 0:01:02]} 18... Nf4 {[%clk 0:01:49]} 19. g3 {[%clk 0:00:38.6]} 19... Nxd3
{[%clk 0:01:35.8]} 20. Qxd3 {[%clk 0:00:39.5]} 20... Rb6 {[%clk 0:01:29.9]} 21.
Nd1 {[%clk 0:00:31.5]} 21... Ng6 {[%clk 0:01:20.3]} 22. c3 {[%clk 0:00:28.9]}
22... Kh7 {[%clk 0:01:15.2]} 23. h4 {[%clk 0:00:28.9]} 23... Bf5 {[%clk
0:01:13.9]} 24. Qd2 {[%clk 0:00:28.8]} 24... Be4 {[%clk 0:01:13.5]} 25. Nh2
{[%clk 0:00:24.3]} 25... Nf8 {[%clk 0:01:08.2]} 26. f3 {[%clk 0:00:20.9]} 26...
Bf5 {[%clk 0:01:05.5]} 27. g4 {[%clk 0:00:20.2]} 27... Bg6 {[%clk 0:01:05.6]}
28. h5 {[%clk 0:00:20.5]} 28... Bb1 {[%clk 0:01:04.9]} 29. Nf2 {[%clk
0:00:17.1]} 29... Ba2 {[%clk 0:01:03.6]} 30. Nd3 {[%clk 0:00:17.1]} 30... Bc4
{[%clk 0:01:00.6]} 31. Nf1 {[%clk 0:00:11.9]} 31... Ne6 {[%clk 0:00:59.5]} 32.
Ng3 {[%clk 0:00:09]} 32... Ng5 {[%clk 0:00:52.6]} 33. Kg2 {[%clk 0:00:09.5]}
33... Ne6 {[%clk 0:00:35.2]} 34. Nf5 {[%clk 0:00:09.9]} 34... Bxd3 {[%clk
0:00:35.2]} 35. Rxd3 {[%clk 0:00:10.8]} 35... Rxb2 {[%clk 0:00:32.4]} 36. Qxb2
{[%clk 0:00:10.3]} 36... Nf4+ {[%clk 0:00:32.7]} 37. Kg3 {[%clk 0:00:05.9]}
37... Nxd3 {[%clk 0:00:32.9]} 38. Qc2 {[%clk 0:00:04.1]} 38... Nxe1 {[%clk
0:00:33]} 0-1

[Event "Early-Titled-Tuesday-Blitz-October-03-2023"]
[Site "Chess.com"]
[Date "2023.10.03"]
[Round "2"]
[White "Gyulamiryan-koryun"]
[Black "Aleksandar-Topalov"]
[Result "0-1"]
[WhiteElo "1991"]
[BlackElo "2404"]
[TimeControl "180+1"]
[EndTime "8:17:11 PDT"]
[Termination "Aleksandar-Topalov won by checkmate"]

1. e4 {[%clk 0:02:59.3]} 1... e6 {[%clk 0:02:59.7]} 2. d4 {[%clk 0:02:58.5]}
2... d5 {[%clk 0:02:53.4]} 3. Nd2 {[%clk 0:02:54.6]} 3... Nf6 {[%clk 0:02:51.5]}
4. e5 {[%clk 0:02:53.2]} 4... Ng8 {[%clk 0:02:51.7]} 5. Bd3 {[%clk 0:02:52.3]}
5... Ne7 {[%clk 0:02:51.7]} 6. Ne2 {[%clk 0:02:49.5]} 6... Qd7 {[%clk
0:02:51.9]} 7. O-O {[%clk 0:02:47.5]} 7... b6 {[%clk 0:02:52.1]} 8. c3 {[%clk
0:02:45.3]} 8... Ba6 {[%clk 0:02:52.1]} 9. Nf3 {[%clk 0:02:35.2]} 9... Bxd3
{[%clk 0:02:51.5]} 10. Qxd3 {[%clk 0:02:33.7]} 10... Nf5 {[%clk 0:02:51.7]} 11.
g4 {[%clk 0:02:29.9]} 11... Ne7 {[%clk 0:02:50.4]} 12. Ng3 {[%clk 0:02:25.4]}
12... h6 {[%clk 0:02:49.7]} 13. h3 {[%clk 0:02:21.4]} 13... g6 {[%clk
0:02:49.9]} 14. Nh4 {[%clk 0:02:15.3]} 14... c5 {[%clk 0:02:49.3]} 15. f4 {[%clk
0:02:14.1]} 15... cxd4 {[%clk 0:02:49.1]} 16. cxd4 {[%clk 0:02:12.9]} 16... Nbc6
{[%clk 0:02:46.3]} 17. a3 {[%clk 0:02:06]} 17... O-O-O {[%clk 0:02:42.3]} 18.
Qa6+ {[%clk 0:01:59.3]} 18... Qb7 {[%clk 0:02:39.7]} 19. Qd3 {[%clk 0:01:55]}
19... Na5 {[%clk 0:02:39.6]} 20. Bd2 {[%clk 0:01:42.6]} 20... Nc4 {[%clk
0:02:37.8]} 21. Rfc1 {[%clk 0:01:36.8]} 21... Kb8 {[%clk 0:02:37.4]} 22. Be1
{[%clk 0:01:33.2]} 22... Nc6 {[%clk 0:02:35.7]} 23. b3 {[%clk 0:01:29.2]} 23...
Nxa3 {[%clk 0:02:20.9]} 24. Ra2 {[%clk 0:01:18.4]} 24... Be7 {[%clk 0:01:58.4]}
25. Rb1 {[%clk 0:01:15.4]} 25... Bxh4 {[%clk 0:01:51.7]} 26. Rxa3 {[%clk
0:01:08.9]} 26... Be7 {[%clk 0:01:51.7]} 27. Ra2 {[%clk 0:01:03.7]} 27... Nxd4
{[%clk 0:01:50.2]} 28. Kh1 {[%clk 0:00:53.5]} 28... Nc6 {[%clk 0:01:48.5]} 29.
Rba1 {[%clk 0:00:48.1]} 29... a5 {[%clk 0:01:43.7]} 30. Ne2 {[%clk 0:00:43.8]}
30... h5 {[%clk 0:01:42.1]} 31. Nd4 {[%clk 0:00:42.5]} 31... hxg4 {[%clk
0:01:38.5]} 32. h4 {[%clk 0:00:35.9]} 32... Nxd4 {[%clk 0:01:30.6]} 33. Qxd4
{[%clk 0:00:33.7]} 33... Bc5 {[%clk 0:01:30.7]} 34. Qd3 {[%clk 0:00:27.5]} 34...
d4+ {[%clk 0:01:31]} 35. Kg1 {[%clk 0:00:24.3]} 35... Qf3 {[%clk 0:01:15.8]} 36.
Qxf3 {[%clk 0:00:23]} 36... gxf3 {[%clk 0:01:15.3]} 37. b4 {[%clk 0:00:21.8]}
37... axb4 {[%clk 0:01:05.7]} 38. Ra8+ {[%clk 0:00:19.9]} 38... Kb7 {[%clk
0:01:06]} 39. R1a7+ {[%clk 0:00:14.8]} 39... Kc6 {[%clk 0:01:06.2]} 40. Rxd8
{[%clk 0:00:14.5]} 40... Rxd8 {[%clk 0:01:05.2]} 41. Rxf7 {[%clk 0:00:13.8]}
41... d3+ {[%clk 0:01:05.5]} 42. Kf1 {[%clk 0:00:11.9]} 42... d2 {[%clk
0:01:06]} 43. Bxd2 {[%clk 0:00:10.5]} 43... Rxd2 {[%clk 0:01:06.1]} 44. Ke1
{[%clk 0:00:10.3]} 44... Re2+ {[%clk 0:01:04.4]} 45. Kd1 {[%clk 0:00:09.2]}
45... b3 {[%clk 0:01:04.9]} 46. Rf6 {[%clk 0:00:08.5]} 46... b2 {[%clk
0:01:04.4]} 47. Rxe6+ {[%clk 0:00:08.8]} 47... Kd5 {[%clk 0:01:04.9]} 48. Rd6+
{[%clk 0:00:04.8]} 48... Bxd6 {[%clk 0:01:03.5]} 49. exd6 {[%clk 0:00:05]} 49...
b1=Q# {[%clk 0:01:03.9]} 0-1

[Event "Early-Titled-Tuesday-Blitz-October-03-2023"]
[Site "Chess.com"]
[Date "2023.10.03"]
[Round "2"]
[White "masnyszachistaaa"]
[Black "artin10862"]
[Result "0-1"]
[WhiteElo "2579"]
[BlackElo "2838"]
[TimeControl "180+1"]
[EndTime "8:17:15 PDT"]
[Termination "artin10862 won by resignation"]

1. e4 {[%clk 0:03:00.9]} 1... g6 {[%clk 0:02:57.2]} 2. d4 {[%clk 0:03:00.4]}
2... Bg7 {[%clk 0:02:57.3]} 3. Nc3 {[%clk 0:02:59]} 3... d6 {[%clk 0:02:56.9]}
4. Be3 {[%clk 0:02:57.4]} 4... a6 {[%clk 0:02:55.3]} 5. a4 {[%clk 0:02:56.9]}
5... Nf6 {[%clk 0:02:45.2]} 6. h3 {[%clk 0:02:56.7]} 6... b6 {[%clk 0:02:43.4]}
7. g4 {[%clk 0:02:56.6]} 7... Bb7 {[%clk 0:02:43]} 8. Bg2 {[%clk 0:02:57.2]}
8... Nfd7 {[%clk 0:02:36.2]} 9. Nge2 {[%clk 0:02:55.2]} 9... e5 {[%clk 0:02:33]}
10. O-O {[%clk 0:02:53.8]} 10... O-O {[%clk 0:02:32.6]} 11. f4 {[%clk 0:02:44]}
11... exd4 {[%clk 0:02:31.6]} 12. Bxd4 {[%clk 0:02:38.7]} 12... Re8 {[%clk
0:02:30.2]} 13. Bxg7 {[%clk 0:02:30]} 13... Kxg7 {[%clk 0:02:31.1]} 14. Ng3
{[%clk 0:02:29]} 14... Nc5 {[%clk 0:02:27.7]} 15. g5 {[%clk 0:02:25.3]} 15...
Nbd7 {[%clk 0:02:25.2]} 16. Qd4+ {[%clk 0:02:23.3]} 16... Kg8 {[%clk 0:02:24.3]}
17. h4 {[%clk 0:02:21.8]} 17... Ne6 {[%clk 0:02:07.9]} 18. Qf2 {[%clk
0:02:17.9]} 18... Bc6 {[%clk 0:01:57.7]} 19. f5 {[%clk 0:02:10.9]} 19... Ng7
{[%clk 0:01:51.7]} 20. f6 {[%clk 0:01:38.9]} 20... Ne6 {[%clk 0:01:51.2]} 21.
Rae1 {[%clk 0:01:34.1]} 21... Ne5 {[%clk 0:01:48.6]} 22. Bh3 {[%clk 0:01:31.6]}
22... h6 {[%clk 0:01:39]} 23. gxh6 {[%clk 0:01:28.2]} 23... Kh7 {[%clk
0:01:37.8]} 24. Nd5 {[%clk 0:01:17.6]} 24... Nc5 {[%clk 0:01:22.3]} 25. b3
{[%clk 0:01:14.1]} 25... Nxe4 {[%clk 0:01:21.4]} 26. Nxe4 {[%clk 0:01:04.1]}
26... Bxd5 {[%clk 0:01:21.2]} 27. Ng5+ {[%clk 0:01:04.3]} 27... Kh8 {[%clk
0:00:57.3]} 28. c4 {[%clk 0:00:47.4]} 28... Nd3 {[%clk 0:00:56.4]} 29. Rxe8+
{[%clk 0:00:47.3]} 29... Qxe8 {[%clk 0:00:55.7]} 30. Qd4 {[%clk 0:00:46.5]}
30... Qe2 {[%clk 0:00:25.6]} 31. cxd5 {[%clk 0:00:37.1]} 31... Ne5 {[%clk
0:00:21.1]} 32. Re1 {[%clk 0:00:26.6]} 32... Qxe1+ {[%clk 0:00:17.7]} 33. Kg2
{[%clk 0:00:26.9]} 33... Rf8 {[%clk 0:00:12.1]} 34. h5 {[%clk 0:00:23.3]} 34...
Qe2+ {[%clk 0:00:11.4]} 35. Kg1 {[%clk 0:00:19.5]} 35... Qxh5 {[%clk 0:00:11.2]}
36. Qf4 {[%clk 0:00:18.8]} 36... Qxg5+ {[%clk 0:00:11.2]} 37. Qxg5 {[%clk
0:00:17.9]} 37... Nf3+ {[%clk 0:00:11.9]} 0-1

[Event "Early-Titled-Tuesday-Blitz-October-03-2023"]
[Site "Chess.com"]
[Date "2023.10.03"]
[Round "2"]
[White "ChessRespected"]
[Black "Itk04"]
[Result "0-1"]
[WhiteElo "2526"]
[BlackElo "2759"]
[TimeControl "180+1"]
[EndTime "8:17:18 PDT"]
[Termination "Itk04 won by resignation"]

1. d4 {[%clk 0:03:00.9]} 1... e6 {[%clk 0:02:52.8]} 2. e4 {[%clk 0:03:00.2]}
2... d5 {[%clk 0:02:52.7]} 3. Nd2 {[%clk 0:03:00.2]} 3... c5 {[%clk 0:02:52.8]}
4. Ngf3 {[%clk 0:02:57.6]} 4... Nc6 {[%clk 0:02:51.9]} 5. c3 {[%clk 0:02:56.3]}
5... Nf6 {[%clk 0:02:29.9]} 6. e5 {[%clk 0:02:46.5]} 6... Nd7 {[%clk 0:02:29.7]}
7. Bd3 {[%clk 0:02:46.4]} 7... Qb6 {[%clk 0:02:26.4]} 8. O-O {[%clk 0:02:45.3]}
8... cxd4 {[%clk 0:02:20]} 9. cxd4 {[%clk 0:02:46.2]} 9... Nxd4 {[%clk
0:02:20.3]} 10. Nxd4 {[%clk 0:02:46.5]} 10... Qxd4 {[%clk 0:02:21.2]} 11. Nf3
{[%clk 0:02:46.4]} 11... Qb6 {[%clk 0:02:19.3]} 12. a3 {[%clk 0:02:46.4]} 12...
a5 {[%clk 0:02:09.4]} 13. Qa4 {[%clk 0:02:43.4]} 13... h6 {[%clk 0:01:52.2]} 14.
Be3 {[%clk 0:02:40.5]} 14... Bc5 {[%clk 0:01:51.9]} 15. Bxc5 {[%clk 0:02:29]}
15... Qxc5 {[%clk 0:01:52.8]} 16. Rac1 {[%clk 0:02:28.6]} 16... Qb6 {[%clk
0:01:47.5]} 17. Bb5 {[%clk 0:02:27]} 17... Qd8 {[%clk 0:01:08.1]} 18. Rc3 {[%clk
0:02:02.9]} 18... O-O {[%clk 0:01:05.5]} 19. Rxc8 {[%clk 0:02:02.8]} 19... Rxc8
{[%clk 0:01:04.5]} 20. Bxd7 {[%clk 0:02:03]} 20... Rc4 {[%clk 0:00:51.1]} 21.
Qb5 {[%clk 0:01:58]} 21... Rc7 {[%clk 0:00:50.7]} 22. Bxe6 {[%clk 0:01:47.4]}
22... fxe6 {[%clk 0:00:50.9]} 23. Qxa5 {[%clk 0:01:47.7]} 23... Rc4 {[%clk
0:00:39.8]} 24. Qb5 {[%clk 0:01:23.1]} 24... Qc8 {[%clk 0:00:27.8]} 25. b3
{[%clk 0:01:17.3]} 25... Rc1 {[%clk 0:00:24.5]} 26. Nd2 {[%clk 0:00:54.2]} 26...
Qc2 {[%clk 0:00:11.2]} 27. Rxc1 {[%clk 0:00:50.7]} 27... Qxc1+ {[%clk
0:00:12.1]} 28. Nf1 {[%clk 0:00:50.9]} 28... Qe1 {[%clk 0:00:10.3]} 29. Qb6
{[%clk 0:00:50.8]} 29... Qxe5 {[%clk 0:00:06.4]} 30. Qxb7 {[%clk 0:00:49.9]}
30... d4 {[%clk 0:00:06.8]} 31. Qd7 {[%clk 0:00:45.4]} 31... Rf7 {[%clk
0:00:05.1]} 32. Qe8+ {[%clk 0:00:44.7]} 32... Rf8 {[%clk 0:00:04.9]} 33. Qd7
{[%clk 0:00:44.8]} 33... Qd5 {[%clk 0:00:05.5]} 34. Qxd5 {[%clk 0:00:40.9]}
34... exd5 {[%clk 0:00:06.4]} 35. f3 {[%clk 0:00:40.2]} 35... Ra8 {[%clk
0:00:04.9]} 36. a4 {[%clk 0:00:39.6]} 36... Rb8 {[%clk 0:00:04.4]} 37. Nd2
{[%clk 0:00:39.7]} 37... d3 {[%clk 0:00:05.1]} 38. Kf2 {[%clk 0:00:39.7]} 38...
Re8 {[%clk 0:00:05.7]} 39. Nf1 {[%clk 0:00:32.9]} 39... Re2+ {[%clk 0:00:06]}
0-1

[Event "Early-Titled-Tuesday-Blitz-October-03-2023"]
[Site "Chess.com"]
[Date "2023.10.03"]
[Round "2"]
[White "FoxOnTheRun97"]
[Black "Kyrie-Eleven"]
[Result "1-0"]
[WhiteElo "2522"]
[BlackElo "2326"]
[TimeControl "180+1"]
[EndTime "8:17:18 PDT"]
[Termination "FoxOnTheRun97 won by checkmate"]

1. d4 {[%clk 0:03:00.9]} 1... Nf6 {[%clk 0:02:58.7]} 2. c4 {[%clk 0:03:01]} 2...
e6 {[%clk 0:02:58.9]} 3. Nf3 {[%clk 0:03:00.4]} 3... d5 {[%clk 0:02:56.1]} 4. g3
{[%clk 0:03:00.8]} 4... Be7 {[%clk 0:02:56.1]} 5. Bg2 {[%clk 0:03:00.9]} 5...
O-O {[%clk 0:02:56.2]} 6. O-O {[%clk 0:03:00.4]} 6... a6 {[%clk 0:02:47.7]} 7.
b3 {[%clk 0:02:35]} 7... Nc6 {[%clk 0:02:40.4]} 8. Bb2 {[%clk 0:02:31.2]} 8...
b5 {[%clk 0:02:06.4]} 9. cxd5 {[%clk 0:02:26.8]} 9... exd5 {[%clk 0:02:05.7]}
10. Ne5 {[%clk 0:02:11.1]} 10... Na5 {[%clk 0:01:50]} 11. Nc3 {[%clk 0:01:38.9]}
11... Be6 {[%clk 0:01:04.2]} 12. Rc1 {[%clk 0:01:25.2]} 12... Rc8 {[%clk
0:00:59.1]} 13. e3 {[%clk 0:01:17]} 13... c5 {[%clk 0:00:58.7]} 14. dxc5 {[%clk
0:01:13.2]} 14... Bxc5 {[%clk 0:00:58.8]} 15. Ne2 {[%clk 0:01:10.4]} 15... Nb7
{[%clk 0:00:50.5]} 16. b4 {[%clk 0:00:36.9]} 16... Bxb4 {[%clk 0:00:37.4]} 17.
Nc6 {[%clk 0:00:37.1]} 17... Rxc6 {[%clk 0:00:27.3]} 18. Rxc6 {[%clk 0:00:38]}
18... Qa8 {[%clk 0:00:17.6]} 19. Rc1 {[%clk 0:00:31]} 19... Na5 {[%clk
0:00:16.3]} 20. Nf4 {[%clk 0:00:26.7]} 20... Nc4 {[%clk 0:00:15.2]} 21. Bxf6
{[%clk 0:00:26.4]} 21... gxf6 {[%clk 0:00:14.8]} 22. Nxd5 {[%clk 0:00:25.9]}
22... Rd8 {[%clk 0:00:11]} 23. Nxf6+ {[%clk 0:00:22.9]} 23... Kg7 {[%clk
0:00:11.5]} 24. Bxa8 {[%clk 0:00:22.4]} 24... Rxd1 {[%clk 0:00:11.4]} 25. Rfxd1
{[%clk 0:00:19.7]} 25... Kxf6 {[%clk 0:00:11.7]} 26. Bd5 {[%clk 0:00:18.9]}
26... Ke5 {[%clk 0:00:10.4]} 27. Bxe6 {[%clk 0:00:18.8]} 27... fxe6 {[%clk
0:00:11.3]} 28. Rd7 {[%clk 0:00:16.9]} 28... Ba3 {[%clk 0:00:09.1]} 29. Rcd1
{[%clk 0:00:16.5]} 29... Nb2 {[%clk 0:00:09]} 30. R1d4 {[%clk 0:00:14.7]} 30...
Bc5 {[%clk 0:00:07.8]} 31. Rh4 {[%clk 0:00:13.4]} 31... a5 {[%clk 0:00:06.7]}
32. Rh5+ {[%clk 0:00:13.6]} 32... Ke4 {[%clk 0:00:06.3]} 33. Rxc5 {[%clk
0:00:13.8]} 33... Nd3 {[%clk 0:00:07]} 34. Rxb5 {[%clk 0:00:13.8]} 34... Kf3
{[%clk 0:00:06.5]} 35. Rxd3 {[%clk 0:00:13.2]} 35... e5 {[%clk 0:00:07.4]} 36.
Kf1 {[%clk 0:00:12.2]} 36... e4 {[%clk 0:00:08.3]} 37. Rf5+ {[%clk 0:00:11.2]}
37... Kg4 {[%clk 0:00:08.7]} 38. Rf4+ {[%clk 0:00:11.5]} 38... Kh3 {[%clk
0:00:09.1]} 39. Rh4# {[%clk 0:00:11.4]} 1-0

[Event "Early-Titled-Tuesday-Blitz-October-03-2023"]
[Site "Chess.com"]
[Date "2023.10.03"]
[Round "2"]
[White "Zurability"]
[Black "koncheto"]
[Result "0-1"]
[WhiteElo "2721"]
[BlackElo "2534"]
[TimeControl "180+1"]
[EndTime "8:17:19 PDT"]
[Termination "koncheto won on time"]

1. Nf3 {[%clk 0:03:00.9]} 1... Nf6 {[%clk 0:02:59.6]} 2. g3 {[%clk 0:03:00.3]}
2... b6 {[%clk 0:02:58.9]} 3. Bg2 {[%clk 0:03:00]} 3... Bb7 {[%clk 0:02:59.5]}
4. O-O {[%clk 0:03:00.3]} 4... c5 {[%clk 0:02:57.1]} 5. c4 {[%clk 0:03:00.4]}
5... d5 {[%clk 0:02:57.1]} 6. Ne5 {[%clk 0:02:47.7]} 6... Qc7 {[%clk 0:02:51.1]}
7. d4 {[%clk 0:02:46.5]} 7... dxc4 {[%clk 0:02:50.7]} 8. Bxb7 {[%clk 0:02:28.1]}
8... Qxb7 {[%clk 0:02:50]} 9. dxc5 {[%clk 0:02:28.7]} 9... b5 {[%clk 0:02:46.9]}
10. a4 {[%clk 0:02:25.8]} 10... a6 {[%clk 0:02:37.1]} 11. axb5 {[%clk
0:02:19.2]} 11... axb5 {[%clk 0:02:38]} 12. Rxa8 {[%clk 0:02:00]} 12... Qxa8
{[%clk 0:02:38.9]} 13. b3 {[%clk 0:01:55.8]} 13... e6 {[%clk 0:01:58.2]} 14.
bxc4 {[%clk 0:01:24.2]} 14... bxc4 {[%clk 0:01:46.5]} 15. Ba3 {[%clk 0:01:02.8]}
15... Nbd7 {[%clk 0:01:14.4]} 16. Nxc4 {[%clk 0:00:56.9]} 16... Bxc5 {[%clk
0:01:12.5]} 17. Bxc5 {[%clk 0:00:42.9]} 17... Nxc5 {[%clk 0:01:13.4]} 18. Qd6
{[%clk 0:00:31.3]} 18... Nce4 {[%clk 0:00:41.9]} 19. Qb4 {[%clk 0:00:23.8]}
19... Nd5 {[%clk 0:00:41.2]} 20. Qb5+ {[%clk 0:00:14.5]} 20... Ke7 {[%clk
0:00:33.4]} 21. Ne5 {[%clk 0:00:15]} 21... Rc8 {[%clk 0:00:26.3]} 22. Qd7+
{[%clk 0:00:10.8]} 22... Kf6 {[%clk 0:00:25.3]} 23. Ng4+ {[%clk 0:00:05.5]}
23... Kg6 {[%clk 0:00:23]} 24. h4 {[%clk 0:00:04.9]} 24... Rc7 {[%clk
0:00:11.1]} 25. Ne5+ {[%clk 0:00:01.8]} 25... Kh5 {[%clk 0:00:05.9]} 26. Qb5
{[%clk 0:00:01.2]} 26... Nec3 {[%clk 0:00:04.8]} 27. Qd3 {[%clk 0:00:01.7]}
27... Kh6 {[%clk 0:00:02.7]} 28. Qf3 {[%clk 0:00:02]} 28... g6 {[%clk
0:00:03.1]} 29. Ng4+ {[%clk 0:00:02.2]} 29... Kg7 {[%clk 0:00:03.5]} 30. Nxc3
{[%clk 0:00:02.9]} 30... Nxc3 {[%clk 0:00:03.3]} 31. Qe4 {[%clk 0:00:03.6]}
31... Qxe4 {[%clk 0:00:03]} 0-1

[Event "Early-Titled-Tuesday-Blitz-October-03-2023"]
[Site "Chess.com"]
[Date "2023.10.03"]
[Round "2"]
[White "Roman_Ovetchkin"]
[Black "arenal72"]
[Result "1-0"]
[WhiteElo "2703"]
[BlackElo "2356"]
[TimeControl "180+1"]
[EndTime "8:17:20 PDT"]
[Termination "Roman_Ovetchkin won on time"]

1. d4 {[%clk 0:03:00.9]} 1... d6 {[%clk 0:02:58.6]} 2. e4 {[%clk 0:02:59.2]}
2... Nf6 {[%clk 0:02:58.2]} 3. Nc3 {[%clk 0:02:59.3]} 3... e5 {[%clk 0:02:58.5]}
4. Nf3 {[%clk 0:02:57.4]} 4... exd4 {[%clk 0:02:58.3]} 5. Nxd4 {[%clk
0:02:57.6]} 5... Be7 {[%clk 0:02:58.7]} 6. Bc4 {[%clk 0:02:57.5]} 6... O-O
{[%clk 0:02:58]} 7. O-O {[%clk 0:02:58.1]} 7... c6 {[%clk 0:02:58.5]} 8. a4
{[%clk 0:02:57.1]} 8... d5 {[%clk 0:02:53.9]} 9. exd5 {[%clk 0:02:56.4]} 9...
cxd5 {[%clk 0:02:54.6]} 10. Be2 {[%clk 0:02:45.3]} 10... Nc6 {[%clk 0:02:51.8]}
11. Be3 {[%clk 0:02:44.7]} 11... Re8 {[%clk 0:02:49.2]} 12. h3 {[%clk
0:02:43.2]} 12... h6 {[%clk 0:02:44.4]} 13. Re1 {[%clk 0:02:42.8]} 13... Bd7
{[%clk 0:02:34.3]} 14. Bf3 {[%clk 0:02:40.7]} 14... Nb4 {[%clk 0:02:28.3]} 15.
Nce2 {[%clk 0:02:23.9]} 15... Qc7 {[%clk 0:01:55.9]} 16. c3 {[%clk 0:02:18.9]}
16... Nc6 {[%clk 0:01:55.2]} 17. Nb5 {[%clk 0:02:13.2]} 17... Qc8 {[%clk
0:01:44.7]} 18. Bf4 {[%clk 0:02:11.3]} 18... Bxh3 {[%clk 0:01:00]} 19. gxh3
{[%clk 0:02:04]} 19... Qxh3 {[%clk 0:01:00.9]} 20. Bg2 {[%clk 0:02:04.3]} 20...
Qf5 {[%clk 0:00:55.6]} 21. Nc7 {[%clk 0:01:53.8]} 21... Bc5 {[%clk 0:00:47.2]}
22. Nxe8 {[%clk 0:01:39]} 22... Ng4 {[%clk 0:00:45.3]} 23. Rf1 {[%clk
0:00:44.1]} 23... Rxe8 {[%clk 0:00:39.9]} 24. Bg3 {[%clk 0:00:44.1]} 24... Qh5
{[%clk 0:00:10.6]} 25. b4 {[%clk 0:00:40]} 25... Bxf2+ {[%clk 0:00:08.7]} 26.
Rxf2 {[%clk 0:00:39.6]} 26... Nxf2 {[%clk 0:00:09]} 27. Kxf2 {[%clk 0:00:39.5]}
27... Ne7 {[%clk 0:00:05.6]} 28. Nf4 {[%clk 0:00:36.3]} 28... Qg5 {[%clk
0:00:06]} 29. Qe2 {[%clk 0:00:23]} 29... Kf8 {[%clk 0:00:04.7]} 30. Re1 {[%clk
0:00:22.5]} 30... Rc8 {[%clk 0:00:02.9]} 31. Qd3 {[%clk 0:00:16.4]} 31... Nf5
{[%clk 0:00:02.5]} 32. Bh2 {[%clk 0:00:16.5]} 32... Rc4 {[%clk 0:00:01.7]} 33.
Nxd5 {[%clk 0:00:14.3]} 33... Nh4 {[%clk 0:00:01.3]} 34. Be4 {[%clk 0:00:12]}
1-0

[Event "Early-Titled-Tuesday-Blitz-October-03-2023"]
[Site "Chess.com"]
[Date "2023.10.03"]
[Round "2"]
[White "Grischuk"]
[Black "KononenkoD"]
[Result "1-0"]
[WhiteElo "3010"]
[BlackElo "2625"]
[TimeControl "180+1"]
[EndTime "8:17:22 PDT"]
[Termination "Grischuk won by resignation"]

1. Nf3 {[%clk 0:03:00.9]} 1... c5 {[%clk 0:02:59.8]} 2. e3 {[%clk 0:03:00.3]}
2... Nc6 {[%clk 0:03:00.7]} 3. d4 {[%clk 0:03:00.4]} 3... cxd4 {[%clk
0:03:00.8]} 4. exd4 {[%clk 0:03:00.7]} 4... d5 {[%clk 0:03:01.2]} 5. Bb5 {[%clk
0:02:59.1]} 5... Nf6 {[%clk 0:02:53.6]} 6. O-O {[%clk 0:02:57.1]} 6... Bg4
{[%clk 0:02:52.8]} 7. c4 {[%clk 0:02:53.1]} 7... Bxf3 {[%clk 0:02:49.9]} 8. Qxf3
{[%clk 0:02:52.5]} 8... e6 {[%clk 0:02:48.4]} 9. Nc3 {[%clk 0:02:50.5]} 9... a6
{[%clk 0:02:35.3]} 10. cxd5 {[%clk 0:02:43.2]} 10... Nxd5 {[%clk 0:02:26.4]} 11.
Bxc6+ {[%clk 0:02:41.9]} 11... bxc6 {[%clk 0:02:25.1]} 12. Bf4 {[%clk
0:02:35.7]} 12... Bd6 {[%clk 0:02:05.6]} 13. Bxd6 {[%clk 0:02:34.5]} 13... Qxd6
{[%clk 0:02:06.5]} 14. Rfd1 {[%clk 0:02:33.9]} 14... O-O {[%clk 0:02:05.9]} 15.
Na4 {[%clk 0:02:26.7]} 15... Rab8 {[%clk 0:02:01.4]} 16. Rac1 {[%clk 0:02:23.5]}
16... Rb4 {[%clk 0:01:59.7]} 17. b3 {[%clk 0:02:23.6]} 17... Rd8 {[%clk
0:01:41.7]} 18. a3 {[%clk 0:02:03.5]} 18... Rb5 {[%clk 0:01:33]} 19. Nc5 {[%clk
0:01:53.5]} 19... a5 {[%clk 0:01:32.9]} 20. g3 {[%clk 0:01:49.7]} 20... g6
{[%clk 0:01:26.2]} 21. Rc4 {[%clk 0:01:40.9]} 21... h5 {[%clk 0:01:03.3]} 22. h4
{[%clk 0:01:37.2]} 22... Kg7 {[%clk 0:01:00.7]} 23. Rdc1 {[%clk 0:01:10.6]}
23... Ne7 {[%clk 0:00:55]} 24. a4 {[%clk 0:01:03.3]} 24... Rb4 {[%clk
0:00:42.8]} 25. Rxb4 {[%clk 0:01:02.8]} 25... axb4 {[%clk 0:00:43.7]} 26. Nb7
{[%clk 0:00:48.7]} 26... Qd5 {[%clk 0:00:38.8]} 27. Qxd5 {[%clk 0:00:49]} 27...
Rxd5 {[%clk 0:00:38.1]} 28. Rc4 {[%clk 0:00:49.6]} 28... Nf5 {[%clk 0:00:35.2]}
29. Rxb4 {[%clk 0:00:44.8]} 29... Nxd4 {[%clk 0:00:31.9]} 30. Rb6 {[%clk
0:00:45.4]} 30... Ne2+ {[%clk 0:00:24]} 31. Kf1 {[%clk 0:00:42.8]} 31... Nc1
{[%clk 0:00:24.4]} 32. a5 {[%clk 0:00:39.6]} 32... Rd1+ {[%clk 0:00:23.5]} 33.
Kg2 {[%clk 0:00:40.3]} 33... Rd2 {[%clk 0:00:20.5]} 34. Nc5 {[%clk 0:00:36.7]}
34... Ra2 {[%clk 0:00:19]} 35. a6 {[%clk 0:00:33.7]} 35... e5 {[%clk 0:00:17.2]}
36. Rb4 {[%clk 0:00:21.1]} 36... Rd2 {[%clk 0:00:04.7]} 37. a7 {[%clk
0:00:19.9]} 1-0